[Event "*** SCC Grand Prix: Titled Tuesday Blitz"]
[Site "Chess.com"]
[Date "2020.07.14"]
[Round "8"]
[White "JesseKraai"]
[Black "AGW2016"]
[Result "1/2-1/2"]
[WhiteElo "2447"]
[BlackElo "2284"]
[TimeControl "180+1"]
[EndTime "11:36:01 PDT"]
[Termination "Game drawn by repetition"]

1. d4 {[%clk 0:03:00.9]} 1... Nf6 {[%clk 0:02:59.6]} 2. c4 {[%clk 0:03:01]} 2...
g6 {[%clk 0:03:00.2]} 3. Nc3 {[%clk 0:03:01]} 3... Bg7 {[%clk 0:03:00.9]} 4. e4
{[%clk 0:03:01.4]} 4... d6 {[%clk 0:03:01.6]} 5. Nf3 {[%clk 0:03:01.8]} 5... O-O
{[%clk 0:03:02.3]} 6. Be2 {[%clk 0:03:02.3]} 6... e5 {[%clk 0:03:02.5]} 7. O-O
{[%clk 0:03:02.2]} 7... Nc6 {[%clk 0:03:02.9]} 8. d5 {[%clk 0:03:00.5]} 8... Ne7
{[%clk 0:03:03.5]} 9. Kh1 {[%clk 0:02:59.6]} 9... Nh5 {[%clk 0:03:00.1]} 10. g3
{[%clk 0:02:54.3]} 10... f5 {[%clk 0:02:55.8]} 11. Ng5 {[%clk 0:02:51.8]} 11...
Nf6 {[%clk 0:02:55.9]} 12. Bf3 {[%clk 0:02:51.2]} 12... fxe4 {[%clk 0:02:29.5]}
13. Ncxe4 {[%clk 0:02:48.2]} 13... Nxe4 {[%clk 0:02:29.8]} 14. Bxe4 {[%clk
0:02:47.1]} 14... Nf5 {[%clk 0:02:29.7]} 15. Kg2 {[%clk 0:02:26.9]} 15... Nd4
{[%clk 0:02:16.5]} 16. h4 {[%clk 0:02:22.6]} 16... Bf5 {[%clk 0:01:53.8]} 17.
Bxf5 {[%clk 0:02:14.7]} 17... gxf5 {[%clk 0:01:45.9]} 18. Be3 {[%clk 0:02:03.9]}
18... h6 {[%clk 0:01:42.6]} 19. Bxd4 {[%clk 0:01:46.1]} 19... hxg5 {[%clk
0:01:42.5]} 20. Bc3 {[%clk 0:01:45.4]} 20... gxh4 {[%clk 0:01:37]} 21. Qh5
{[%clk 0:01:38.2]} 21... f4 {[%clk 0:01:17.1]} 22. gxh4 {[%clk 0:01:08.6]} 22...
f3+ {[%clk 0:01:03.9]} 23. Kh3 {[%clk 0:01:07.2]} 23... Qd7+ {[%clk 0:00:59.4]}
24. Kh2 {[%clk 0:01:00.8]} 24... Qf7 {[%clk 0:00:42]} 25. Qxf7+ {[%clk
0:00:58.9]} 25... Rxf7 {[%clk 0:00:42.9]} 26. Rg1 {[%clk 0:00:58.9]} 26... Kh7
{[%clk 0:00:40.1]} 27. Rg4 {[%clk 0:00:58.5]} 27... Bh6 {[%clk 0:00:26.4]} 28.
Rag1 {[%clk 0:00:57.9]} 28... Rf4 {[%clk 0:00:24.7]} 29. Kh3 {[%clk 0:00:56.8]}
29... Raf8 {[%clk 0:00:22.2]} 30. b3 {[%clk 0:00:56.1]} 30... Rxg4 {[%clk
0:00:20.5]} 31. Rxg4 {[%clk 0:00:55.4]} 31... Rf4 {[%clk 0:00:20.6]} 32. Rxf4
{[%clk 0:00:54]} 32... Bxf4 {[%clk 0:00:21.2]} 33. Kg4 {[%clk 0:00:54.5]} 33...
Kg6 {[%clk 0:00:21.7]} 34. Kxf3 {[%clk 0:00:54.1]} 34... Kh5 {[%clk 0:00:21.9]}
35. Ke4 {[%clk 0:00:49.6]} 35... Kxh4 {[%clk 0:00:22.4]} 36. Kf5 {[%clk
0:00:50]} 36... Kh3 {[%clk 0:00:23]} 37. Ke6 {[%clk 0:00:50.5]} 37... Kg2 {[%clk
0:00:23.7]} 38. Kd7 {[%clk 0:00:51]} 38... Kxf2 {[%clk 0:00:24.4]} 39. Kxc7
{[%clk 0:00:51.4]} 39... e4 {[%clk 0:00:25.1]} 40. Kxb7 {[%clk 0:00:49]} 40...
e3 {[%clk 0:00:24.4]} 41. b4 {[%clk 0:00:44.2]} 41... e2 {[%clk 0:00:23.5]} 42.
c5 {[%clk 0:00:44.2]} 42... Be5 {[%clk 0:00:19.1]} 43. Bd2 {[%clk 0:00:39.3]}
43... Bf4 {[%clk 0:00:14.9]} 44. Bc3 {[%clk 0:00:34.1]} 44... Be5 {[%clk
0:00:15]} 45. Bd2 {[%clk 0:00:34.1]} 45... Bf4 {[%clk 0:00:15.3]} 46. Bc3 {[%clk
0:00:34.4]} 1/2-1/2

[Event "*** SCC Grand Prix: Titled Tuesday Blitz"]
[Site "Chess.com"]
[Date "2020.07.14"]
[Round "8"]
[White "penguingm1"]
[Black "exoticprincess"]
[Result "1/2-1/2"]
[WhiteElo "2956"]
[BlackElo "2828"]
[TimeControl "180+1"]
[EndTime "11:36:03 PDT"]
[Termination "Game drawn by agreement"]

1. d4 {[%clk 0:03:00.9]} 1... d5 {[%clk 0:03:00]} 2. Bf4 {[%clk 0:03:01.1]} 2...
c6 {[%clk 0:03:00.9]} 3. e3 {[%clk 0:03:01.4]} 3... Nf6 {[%clk 0:03:01.4]} 4. c4
{[%clk 0:03:01.8]} 4... Na6 {[%clk 0:03:00]} 5. Nc3 {[%clk 0:02:57.7]} 5... Nc7
{[%clk 0:03:00.2]} 6. Nf3 {[%clk 0:02:54.5]} 6... g6 {[%clk 0:03:00]} 7. Be2
{[%clk 0:02:53.5]} 7... Bg7 {[%clk 0:03:00.2]} 8. O-O {[%clk 0:02:48.5]} 8...
O-O {[%clk 0:03:00.1]} 9. Rc1 {[%clk 0:02:40.8]} 9... dxc4 {[%clk 0:03:00.3]}
10. Bxc4 {[%clk 0:02:41.5]} 10... Ncd5 {[%clk 0:02:59.8]} 11. Nxd5 {[%clk
0:02:32.9]} 11... Nxd5 {[%clk 0:02:57.5]} 12. Bg3 {[%clk 0:02:29.2]} 12... Bg4
{[%clk 0:02:54.9]} 13. h3 {[%clk 0:02:27.8]} 13... Bxf3 {[%clk 0:02:55.2]} 14.
Qxf3 {[%clk 0:02:28.5]} 14... e6 {[%clk 0:02:55.9]} 15. Rfd1 {[%clk 0:02:24.9]}
15... Qb6 {[%clk 0:02:56]} 16. Bd6 {[%clk 0:01:56.8]} 16... Rfe8 {[%clk
0:02:51.8]} 17. Bc5 {[%clk 0:01:34.9]} 17... Qc7 {[%clk 0:02:51.3]} 18. Ba3
{[%clk 0:01:24.1]} 18... Rad8 {[%clk 0:02:49.1]} 19. Bb3 {[%clk 0:01:09.6]}
19... Bf8 {[%clk 0:02:48.1]} 20. Bxf8 {[%clk 0:01:04]} 20... Rxf8 {[%clk
0:02:49]} 21. e4 {[%clk 0:01:03.1]} 21... Nb6 {[%clk 0:02:49.1]} 22. d5 {[%clk
0:01:01.1]} 22... exd5 {[%clk 0:02:32.8]} 23. exd5 {[%clk 0:01:00.9]} 23... Rd6
{[%clk 0:02:10.1]} 24. dxc6 {[%clk 0:00:59.9]} 24... Rxc6 {[%clk 0:02:11]} 25.
Rxc6 {[%clk 0:00:58.7]} 25... Qxc6 {[%clk 0:02:11.9]} 26. Qxc6 {[%clk
0:00:54.5]} 26... bxc6 {[%clk 0:02:12.8]} 27. Rd6 {[%clk 0:00:52.8]} 27... Rc8
{[%clk 0:02:10.5]} 28. a4 {[%clk 0:00:47.7]} 28... Kf8 {[%clk 0:02:07.1]} 29. a5
{[%clk 0:00:43.9]} 29... Ke7 {[%clk 0:02:07.2]} 30. Rd3 {[%clk 0:00:38.7]} 30...
Nd7 {[%clk 0:02:07.1]} 31. Bxf7 {[%clk 0:00:34]} 31... Rb8 {[%clk 0:02:04.4]}
32. Bb3 {[%clk 0:00:27.4]} 32... Nc5 {[%clk 0:02:03]} 33. Re3+ {[%clk
0:00:27.9]} 33... Kd6 {[%clk 0:02:03.1]} 34. Bc4 {[%clk 0:00:20.9]} 34... Rxb2
{[%clk 0:02:03.1]} 35. Bg8 {[%clk 0:00:18.2]} 35... Rb7 {[%clk 0:01:58.3]} 36.
Rf3 {[%clk 0:00:18.4]} 36... Rg7 {[%clk 0:01:57.5]} 37. Rf6+ {[%clk 0:00:16.6]}
37... Kc7 {[%clk 0:01:52.9]} 38. Bc4 {[%clk 0:00:16.9]} 38... Nd7 {[%clk
0:01:52.3]} 39. Re6 {[%clk 0:00:15.4]} 39... Nc5 {[%clk 0:01:49.2]} 40. Re2
{[%clk 0:00:14.9]} 40... Rd7 {[%clk 0:01:47.7]} 41. g3 {[%clk 0:00:14.6]} 41...
Nd3 {[%clk 0:01:39.6]} 42. Re3 {[%clk 0:00:12.3]} 42... Nb4 {[%clk 0:01:38.2]}
43. h4 {[%clk 0:00:11.9]} 43... c5 {[%clk 0:01:37.9]} 44. Re5 {[%clk 0:00:11.4]}
44... Kd6 {[%clk 0:01:37.7]} 45. Re6+ {[%clk 0:00:11.6]} 45... Kc7 {[%clk
0:01:37.6]} 46. Re5 {[%clk 0:00:12.1]} 46... Kd6 {[%clk 0:01:31.1]} 47. Re6+
{[%clk 0:00:12.5]} 47... Kc7 {[%clk 0:01:30.7]} 48. h5 {[%clk 0:00:13.1]} 48...
gxh5 {[%clk 0:01:25]} 49. Re5 {[%clk 0:00:13.3]} 49... h4 {[%clk 0:01:18.1]} 50.
Rxc5+ {[%clk 0:00:12.6]} 50... Kd6 {[%clk 0:01:18.2]} 51. Rb5 {[%clk 0:00:13.1]}
51... hxg3 {[%clk 0:01:15.6]} 52. Rxb4 {[%clk 0:00:12.8]} 52... gxf2+ {[%clk
0:01:16.1]} 53. Kxf2 {[%clk 0:00:11.6]} 53... Kc5 {[%clk 0:01:16.7]} 54. Ra4
{[%clk 0:00:08.3]} 54... Rd4 {[%clk 0:01:16.8]} 55. Bb3 {[%clk 0:00:08.2]} 55...
Rxa4 {[%clk 0:01:17.3]} 56. Bxa4 {[%clk 0:00:09.1]} 56... Kb4 {[%clk 0:01:18.1]}
57. Bc2 {[%clk 0:00:09.4]} 57... Kxa5 {[%clk 0:01:18.3]} 58. Bxh7 {[%clk
0:00:09.8]} 1/2-1/2

[Event "*** SCC Grand Prix: Titled Tuesday Blitz"]
[Site "Chess.com"]
[Date "2020.07.14"]
[Round "8"]
[White "OhanyanEminChess"]
[Black "AttackSparrow"]
[Result "1-0"]
[WhiteElo "2490"]
[BlackElo "2316"]
[TimeControl "180+1"]
[EndTime "11:36:03 PDT"]
[Termination "OhanyanEminChess won by checkmate"]

1. e4 {[%clk 0:03:00.9]} 1... c5 {[%clk 0:02:58.9]} 2. Nf3 {[%clk 0:02:55.7]}
2... e6 {[%clk 0:02:58.8]} 3. d4 {[%clk 0:02:49.2]} 3... cxd4 {[%clk 0:02:59.7]}
4. Nxd4 {[%clk 0:02:50.1]} 4... Nc6 {[%clk 0:03:00]} 5. Nc3 {[%clk 0:02:49.6]}
5... Qc7 {[%clk 0:02:59.7]} 6. Be3 {[%clk 0:02:48.8]} 6... a6 {[%clk 0:02:55.4]}
7. f3 {[%clk 0:02:48.6]} 7... Nf6 {[%clk 0:02:55]} 8. Qd2 {[%clk 0:02:48.2]}
8... Ne5 {[%clk 0:02:50.7]} 9. a3 {[%clk 0:02:44.1]} 9... b5 {[%clk 0:02:48.8]}
10. Be2 {[%clk 0:02:43.8]} 10... Bb7 {[%clk 0:02:47.7]} 11. O-O {[%clk
0:02:39.1]} 11... h5 {[%clk 0:02:36.4]} 12. Rad1 {[%clk 0:02:33]} 12... Bc5
{[%clk 0:02:32.4]} 13. Nb3 {[%clk 0:02:29.3]} 13... Bxe3+ {[%clk 0:01:43.8]} 14.
Qxe3 {[%clk 0:02:30.2]} 14... O-O-O {[%clk 0:01:33.7]} 15. f4 {[%clk 0:02:17.2]}
15... Neg4 {[%clk 0:01:32.1]} 16. Qa7 {[%clk 0:02:08.8]} 16... Nxe4 {[%clk
0:01:30.9]} 17. Nxe4 {[%clk 0:02:03.7]} 17... Bxe4 {[%clk 0:01:31.3]} 18. Qxa6+
{[%clk 0:02:03.6]} 18... Qb7 {[%clk 0:01:31.5]} 19. Qa5 {[%clk 0:01:37.5]} 19...
Bxg2 {[%clk 0:01:14.9]} 20. Bxb5 {[%clk 0:01:26.4]} 20... Bxf1 {[%clk
0:01:15.1]} 21. Bxf1 {[%clk 0:00:58.5]} 21... Kb8 {[%clk 0:01:09]} 22. Nc5
{[%clk 0:00:40.2]} 22... Qa7 {[%clk 0:01:09.1]} 23. Qb4+ {[%clk 0:00:40]} 23...
Ka8 {[%clk 0:01:09.5]} 24. Rd3 {[%clk 0:00:15.3]} 24... Rc8 {[%clk 0:00:56.4]}
25. Bg2+ {[%clk 0:00:15.3]} 25... d5 {[%clk 0:00:56.1]} 26. Rxd5 {[%clk
0:00:15.5]} 26... Ne3 {[%clk 0:00:11.3]} 27. Rd7+ {[%clk 0:00:06.6]} 27... Nxg2
{[%clk 0:00:11.6]} 28. Rxa7+ {[%clk 0:00:06.7]} 28... Kxa7 {[%clk 0:00:12.2]}
29. Qb7# {[%clk 0:00:07.6]} 1-0

[Event "*** SCC Grand Prix: Titled Tuesday Blitz"]
[Site "Chess.com"]
[Date "2020.07.14"]
[Round "8"]
[White "Rytenko_V"]
[Black "JozefKneht"]
[Result "0-1"]
[WhiteElo "2437"]
[BlackElo "2339"]
[TimeControl "180+1"]
[EndTime "11:36:05 PDT"]
[Termination "JozefKneht won by resignation"]

1. e4 {[%clk 0:03:00.7]} 1... e5 {[%clk 0:02:57.4]} 2. Nc3 {[%clk 0:02:58.9]}
2... Nf6 {[%clk 0:02:55.2]} 3. Bc4 {[%clk 0:02:58.2]} 3... Nc6 {[%clk
0:02:53.6]} 4. d3 {[%clk 0:02:58]} 4... Na5 {[%clk 0:02:53.6]} 5. Bg5 {[%clk
0:02:54.9]} 5... h6 {[%clk 0:02:44.7]} 6. Bh4 {[%clk 0:02:54.7]} 6... Nxc4
{[%clk 0:02:44.3]} 7. dxc4 {[%clk 0:02:54.7]} 7... Bb4 {[%clk 0:02:41.8]} 8. Ne2
{[%clk 0:02:53.9]} 8... d6 {[%clk 0:02:42.1]} 9. a3 {[%clk 0:02:51.2]} 9...
Bxc3+ {[%clk 0:02:41.5]} 10. Nxc3 {[%clk 0:02:51.6]} 10... Be6 {[%clk 0:02:42]}
11. Qd3 {[%clk 0:02:47.9]} 11... g5 {[%clk 0:02:38.3]} 12. Bg3 {[%clk
0:02:47.8]} 12... Qe7 {[%clk 0:02:37.5]} 13. O-O-O {[%clk 0:02:47.7]} 13... Nh5
{[%clk 0:02:29.7]} 14. f3 {[%clk 0:02:44.1]} 14... Nf4 {[%clk 0:02:28.4]} 15.
Bxf4 {[%clk 0:02:40.1]} 15... gxf4 {[%clk 0:02:27]} 16. Nd5 {[%clk 0:02:39.8]}
16... Bxd5 {[%clk 0:02:24.2]} 17. cxd5 {[%clk 0:02:38.3]} 17... Rg8 {[%clk
0:02:22.4]} 18. g4 {[%clk 0:02:35.1]} 18... O-O-O {[%clk 0:02:18.2]} 19. h4
{[%clk 0:02:28.6]} 19... h5 {[%clk 0:02:15]} 20. Rdg1 {[%clk 0:02:14.3]} 20...
Kb8 {[%clk 0:02:03]} 21. Qe2 {[%clk 0:01:35.7]} 21... hxg4 {[%clk 0:01:55.8]}
22. fxg4 {[%clk 0:01:35.6]} 22... f6 {[%clk 0:01:55.9]} 23. Rh3 {[%clk 0:01:19]}
23... Qh7 {[%clk 0:01:55.5]} 24. h5 {[%clk 0:01:06.3]} 24... Qh6 {[%clk
0:01:54.2]} 25. Rb3 {[%clk 0:00:51.7]} 25... Rg7 {[%clk 0:01:07.1]} 26. Qa6
{[%clk 0:00:48.7]} 26... b6 {[%clk 0:01:06.8]} 27. Kb1 {[%clk 0:00:37.4]} 27...
Rdg8 {[%clk 0:01:05.5]} 28. Rb4 {[%clk 0:00:30.8]} 28... f3 {[%clk 0:00:58]} 29.
Ra4 {[%clk 0:00:26.5]} 29... c5 {[%clk 0:00:54.1]} 30. dxc6 {[%clk 0:00:27.4]}
30... Qe3 {[%clk 0:00:50.6]} 31. Rf1 {[%clk 0:00:26.3]} 31... f2 {[%clk
0:00:49.3]} 32. Rb4 {[%clk 0:00:17.8]} 32... Rc7 {[%clk 0:00:45.2]} 33. Rb3
{[%clk 0:00:17.8]} 33... Qe1+ {[%clk 0:00:44.8]} 34. Ka2 {[%clk 0:00:17.5]}
34... Rxg4 {[%clk 0:00:42.1]} 35. Rxb6+ {[%clk 0:00:11.7]} 35... axb6 {[%clk
0:00:40.5]} 36. Qxb6+ {[%clk 0:00:12.6]} 36... Kc8 {[%clk 0:00:40.3]} 37. Qa6+
{[%clk 0:00:13.5]} 37... Kd8 {[%clk 0:00:40.3]} 38. Qa8+ {[%clk 0:00:13.9]}
38... Ke7 {[%clk 0:00:40]} 39. Qa5 {[%clk 0:00:07.3]} 39... Qxa5 {[%clk
0:00:37.3]} 0-1

[Event "*** SCC Grand Prix: Titled Tuesday Blitz"]
[Site "Chess.com"]
[Date "2020.07.14"]
[Round "8"]
[White "crescentmoon2411"]
[Black "Paladin61"]
[Result "0-1"]
[WhiteElo "2832"]
[BlackElo "2672"]
[TimeControl "180+1"]
[EndTime "11:36:08 PDT"]
[Termination "Paladin61 won by resignation"]

1. c4 {[%clk 0:03:00.9]} 1... Nf6 {[%clk 0:02:59.1]} 2. Nc3 {[%clk 0:03:00.4]}
2... g6 {[%clk 0:02:59.3]} 3. e4 {[%clk 0:02:59.6]} 3... Bg7 {[%clk 0:02:59.3]}
4. d4 {[%clk 0:02:59.6]} 4... d6 {[%clk 0:02:59.1]} 5. Nf3 {[%clk 0:02:58.1]}
5... O-O {[%clk 0:02:59.1]} 6. Be2 {[%clk 0:02:58.2]} 6... e5 {[%clk 0:02:58.9]}
7. d5 {[%clk 0:02:54.7]} 7... a5 {[%clk 0:02:56.9]} 8. Bg5 {[%clk 0:02:46.2]}
8... h6 {[%clk 0:02:53.1]} 9. Bh4 {[%clk 0:02:46.2]} 9... g5 {[%clk 0:02:53]}
10. Bg3 {[%clk 0:02:46.1]} 10... Nh5 {[%clk 0:02:53.3]} 11. Nd2 {[%clk
0:02:37.4]} 11... Nf4 {[%clk 0:02:52.8]} 12. O-O {[%clk 0:02:28.8]} 12... Na6
{[%clk 0:02:52.3]} 13. Re1 {[%clk 0:01:35.2]} 13... Nc5 {[%clk 0:02:50.9]} 14.
Nf1 {[%clk 0:01:35]} 14... f5 {[%clk 0:02:45.6]} 15. exf5 {[%clk 0:01:33.8]}
15... Bxf5 {[%clk 0:02:44.4]} 16. Ne3 {[%clk 0:01:34]} 16... Bg6 {[%clk
0:02:34.7]} 17. Qd2 {[%clk 0:01:24.5]} 17... h5 {[%clk 0:02:27.8]} 18. h3 {[%clk
0:01:20.1]} 18... Qd7 {[%clk 0:02:08.5]} 19. Bf1 {[%clk 0:01:16.3]} 19... Rf7
{[%clk 0:02:07.9]} 20. b3 {[%clk 0:01:06.2]} 20... a4 {[%clk 0:01:57.9]} 21. b4
{[%clk 0:00:43.3]} 21... Ncd3 {[%clk 0:01:56.8]} 22. Reb1 {[%clk 0:00:36.7]}
22... e4 {[%clk 0:01:43.1]} 23. a3 {[%clk 0:00:26.3]} 23... h4 {[%clk
0:01:27.5]} 24. Bxf4 {[%clk 0:00:26.2]} 24... gxf4 {[%clk 0:01:22.7]} 25. Ng4
{[%clk 0:00:26.2]} 25... e3 {[%clk 0:01:10.8]} 26. Qc2 {[%clk 0:00:21.6]} 26...
Ne5 {[%clk 0:00:51.6]} 27. Ne4 {[%clk 0:00:17.7]} 27... Nxg4 {[%clk 0:00:41.4]}
28. hxg4 {[%clk 0:00:18.6]} 28... exf2+ {[%clk 0:00:24.2]} 0-1

[Event "*** SCC Grand Prix: Titled Tuesday Blitz"]
[Site "Chess.com"]
[Date "2020.07.14"]
[Round "8"]
[White "FedaMaster"]
[Black "Ermito2020"]
[Result "1-0"]
[WhiteElo "2386"]
[BlackElo "2510"]
[TimeControl "180+1"]
[EndTime "11:36:08 PDT"]
[Termination "FedaMaster won by checkmate"]

1. e4 {[%clk 0:03:00.9]} 1... c6 {[%clk 0:02:59.5]} 2. d4 {[%clk 0:03:00.8]}
2... d5 {[%clk 0:03:00.4]} 3. Bd3 {[%clk 0:03:01]} 3... dxe4 {[%clk 0:02:53.6]}
4. Bxe4 {[%clk 0:03:01.9]} 4... Nf6 {[%clk 0:02:53.9]} 5. Bf3 {[%clk 0:03:00.9]}
5... Bf5 {[%clk 0:02:46.5]} 6. c4 {[%clk 0:03:01.4]} 6... e6 {[%clk 0:02:45.7]}
7. Nc3 {[%clk 0:03:01.9]} 7... Be7 {[%clk 0:02:31.3]} 8. Be3 {[%clk 0:03:02.3]}
8... Nbd7 {[%clk 0:02:30.5]} 9. g4 {[%clk 0:02:58.5]} 9... Bg6 {[%clk
0:02:28.9]} 10. h4 {[%clk 0:02:59.4]} 10... h5 {[%clk 0:02:13.9]} 11. g5 {[%clk
0:02:59.7]} 11... Ng4 {[%clk 0:02:13.7]} 12. Bxg4 {[%clk 0:03:00.1]} 12... hxg4
{[%clk 0:02:14.2]} 13. Qxg4 {[%clk 0:03:00.6]} 13... Qa5 {[%clk 0:02:05.3]} 14.
Ne2 {[%clk 0:02:40.6]} 14... Bd3 {[%clk 0:01:51.1]} 15. c5 {[%clk 0:02:27]}
15... O-O-O {[%clk 0:01:39.5]} 16. Nc1 {[%clk 0:02:21.7]} 16... Bf5 {[%clk
0:01:37.8]} 17. Qe2 {[%clk 0:02:22.2]} 17... e5 {[%clk 0:01:32.3]} 18. Nb3
{[%clk 0:02:21.2]} 18... Qb4 {[%clk 0:01:19.2]} 19. Rd1 {[%clk 0:02:21.7]} 19...
a5 {[%clk 0:01:04.5]} 20. Qf3 {[%clk 0:01:11.8]} 20... Bc2 {[%clk 0:00:59.6]}
21. Rd2 {[%clk 0:01:10.3]} 21... Bxb3 {[%clk 0:00:54.9]} 22. axb3 {[%clk
0:01:11.2]} 22... exd4 {[%clk 0:00:54.5]} 23. Rxd4 {[%clk 0:01:10.1]} 23... Qxb3
{[%clk 0:00:54.4]} 24. O-O {[%clk 0:01:04.6]} 24... Bxc5 {[%clk 0:00:38.1]} 25.
Rxd7 {[%clk 0:01:02.5]} 25... Rxd7 {[%clk 0:00:38.3]} 26. Bxc5 {[%clk
0:01:00.3]} 26... Rxh4 {[%clk 0:00:33]} 27. Re1 {[%clk 0:01:00.8]} 27... Rd8
{[%clk 0:00:19]} 28. Re7 {[%clk 0:00:49.6]} 28... Qc4 {[%clk 0:00:18.6]} 29. Re4
{[%clk 0:00:23.7]} 29... Rxe4 {[%clk 0:00:16.8]} 30. Nxe4 {[%clk 0:00:24.6]}
30... Qd3 {[%clk 0:00:10.4]} 31. Qf4 {[%clk 0:00:21]} 31... Qd1+ {[%clk
0:00:09.6]} 32. Kg2 {[%clk 0:00:21.1]} 32... Qd5 {[%clk 0:00:08.8]} 33. Bb6
{[%clk 0:00:18.2]} 33... Re8 {[%clk 0:00:07.8]} 34. f3 {[%clk 0:00:17.6]} 34...
Re6 {[%clk 0:00:05.6]} 35. Qc7# {[%clk 0:00:17.2]} 1-0

[Event "*** SCC Grand Prix: Titled Tuesday Blitz"]
[Site "Chess.com"]
[Date "2020.07.14"]
[Round "8"]
[White "FearNoEvil12"]
[Black "Yoshikrov"]
[Result "1-0"]
[WhiteElo "2011"]
[BlackElo "2095"]
[TimeControl "180+1"]
[EndTime "11:36:09 PDT"]
[Termination "FearNoEvil12 won by checkmate"]

1. e4 {[%clk 0:03:00.9]} 1... c5 {[%clk 0:02:58.6]} 2. Nc3 {[%clk 0:03:00]} 2...
d6 {[%clk 0:02:55.8]} 3. f4 {[%clk 0:03:00.3]} 3... Nc6 {[%clk 0:02:55.2]} 4.
Bc4 {[%clk 0:03:00.7]} 4... e6 {[%clk 0:02:55.4]} 5. Nf3 {[%clk 0:03:01.1]} 5...
Nf6 {[%clk 0:02:54.7]} 6. d3 {[%clk 0:03:01.1]} 6... Be7 {[%clk 0:02:55]} 7. O-O
{[%clk 0:03:00]} 7... O-O {[%clk 0:02:54.8]} 8. Qe1 {[%clk 0:03:00.1]} 8... a6
{[%clk 0:02:51.5]} 9. a4 {[%clk 0:02:59]} 9... d5 {[%clk 0:02:51.1]} 10. Bb3
{[%clk 0:02:57.6]} 10... dxe4 {[%clk 0:02:49.6]} 11. dxe4 {[%clk 0:02:56.7]}
11... Nd4 {[%clk 0:02:50]} 12. e5 {[%clk 0:02:51.6]} 12... Nd5 {[%clk
0:02:34.2]} 13. Ne4 {[%clk 0:02:40.2]} 13... Nxb3 {[%clk 0:02:31.8]} 14. cxb3
{[%clk 0:02:39.2]} 14... Bd7 {[%clk 0:02:27.8]} 15. Bd2 {[%clk 0:02:27.5]} 15...
Bc6 {[%clk 0:02:17.2]} 16. Rd1 {[%clk 0:02:26.8]} 16... Qb6 {[%clk 0:02:12.1]}
17. f5 {[%clk 0:01:38.8]} 17... exf5 {[%clk 0:01:57.6]} 18. Ng3 {[%clk
0:01:38.6]} 18... f4 {[%clk 0:01:40.9]} 19. Nf5 {[%clk 0:01:36.6]} 19... Rfe8
{[%clk 0:01:27.7]} 20. Bc1 {[%clk 0:01:21.7]} 20... c4+ {[%clk 0:01:19.5]} 21.
Kh1 {[%clk 0:01:19.5]} 21... Bb4 {[%clk 0:01:09.7]} 22. Qh4 {[%clk 0:01:11.1]}
22... Ne3 {[%clk 0:00:36.4]} 23. Bxe3 {[%clk 0:01:08.4]} 23... fxe3 {[%clk
0:00:35]} 24. Ng5 {[%clk 0:01:08.8]} 24... h6 {[%clk 0:00:30.4]} 25. Nxh6+
{[%clk 0:01:07.1]} 25... gxh6 {[%clk 0:00:27.1]} 26. Nxf7 {[%clk 0:01:02.1]}
26... Bxg2+ {[%clk 0:00:15.7]} 27. Kxg2 {[%clk 0:01:00.9]} 27... Qg6+ {[%clk
0:00:15.6]} 28. Kh3 {[%clk 0:00:52.7]} 28... Kh7 {[%clk 0:00:12.5]} 29. Rf6
{[%clk 0:00:33.7]} 29... Qg7 {[%clk 0:00:03.2]} 30. Rdf1 {[%clk 0:00:25.7]}
30... e2 {[%clk 0:00:03]} 31. Rxh6+ {[%clk 0:00:24.6]} 31... Kg8 {[%clk
0:00:03.1]} 32. Rh8+ {[%clk 0:00:24.1]} 32... Qxh8 {[%clk 0:00:02.4]} 33. Qxh8#
{[%clk 0:00:23.7]} 1-0

[Event "*** SCC Grand Prix: Titled Tuesday Blitz"]
[Site "Chess.com"]
[Date "2020.07.14"]
[Round "8"]
[White "PavelShkapenko"]
[Black "NormWeinstein"]
[Result "1-0"]
[WhiteElo "2600"]
[BlackElo "2458"]
[TimeControl "180+1"]
[EndTime "11:36:11 PDT"]
[Termination "PavelShkapenko won by resignation"]

1. e4 {[%clk 0:02:59.7]} 1... c5 {[%clk 0:02:58.2]} 2. c3 {[%clk 0:02:59.5]}
2... d6 {[%clk 0:02:57.2]} 3. d4 {[%clk 0:02:59.1]} 3... Nf6 {[%clk 0:02:57.1]}
4. Bd3 {[%clk 0:02:58.1]} 4... cxd4 {[%clk 0:02:56.7]} 5. cxd4 {[%clk
0:02:57.9]} 5... Nc6 {[%clk 0:02:56.4]} 6. Nf3 {[%clk 0:02:57.2]} 6... Bg4
{[%clk 0:02:55.6]} 7. d5 {[%clk 0:02:56.8]} 7... Nb8 {[%clk 0:02:55.4]} 8. h3
{[%clk 0:02:51.5]} 8... Bxf3 {[%clk 0:02:54.2]} 9. Qxf3 {[%clk 0:02:51.5]} 9...
Nbd7 {[%clk 0:02:54.6]} 10. O-O {[%clk 0:02:49.8]} 10... g6 {[%clk 0:02:55]} 11.
Nc3 {[%clk 0:02:38.3]} 11... Bg7 {[%clk 0:02:54.4]} 12. Qe2 {[%clk 0:02:23.1]}
12... O-O {[%clk 0:02:53.6]} 13. Be3 {[%clk 0:02:20.5]} 13... Qa5 {[%clk
0:02:50]} 14. Bd2 {[%clk 0:02:16.6]} 14... Rfc8 {[%clk 0:02:45]} 15. Rfc1 {[%clk
0:02:13.4]} 15... Ne5 {[%clk 0:02:42.3]} 16. a3 {[%clk 0:02:06.1]} 16... Nxd3
{[%clk 0:02:32.2]} 17. Qxd3 {[%clk 0:02:05.1]} 17... Nd7 {[%clk 0:02:27.9]} 18.
b4 {[%clk 0:01:58.7]} 18... Qd8 {[%clk 0:02:25.4]} 19. f4 {[%clk 0:01:57.5]}
19... Nb6 {[%clk 0:02:17.4]} 20. Ra2 {[%clk 0:01:57]} 20... Nc4 {[%clk
0:01:57.9]} 21. Be1 {[%clk 0:01:55.2]} 21... a6 {[%clk 0:01:57.3]} 22. Bf2
{[%clk 0:01:45.3]} 22... b5 {[%clk 0:01:56.4]} 23. a4 {[%clk 0:01:43.3]} 23...
Qd7 {[%clk 0:01:32.5]} 24. axb5 {[%clk 0:01:27.2]} 24... axb5 {[%clk 0:01:30.9]}
25. Rxa8 {[%clk 0:01:27.7]} 25... Rxa8 {[%clk 0:01:26.1]} 26. Nxb5 {[%clk
0:01:28.2]} 26... Nb2 {[%clk 0:00:53.1]} 27. Qe2 {[%clk 0:01:25.4]} 27... Rb8
{[%clk 0:00:53.1]} 28. Nd4 {[%clk 0:01:06]} 28... Rxb4 {[%clk 0:00:49.2]} 29.
Nc6 {[%clk 0:01:04.4]} 29... Rb7 {[%clk 0:00:49.6]} 30. Ra1 {[%clk 0:01:00.8]}
30... h5 {[%clk 0:00:40.7]} 31. Ra8+ {[%clk 0:00:57.7]} 31... Kh7 {[%clk
0:00:40.3]} 32. Kh2 {[%clk 0:00:44.4]} 32... e6 {[%clk 0:00:38.4]} 33. Bd4
{[%clk 0:00:41.6]} 33... exd5 {[%clk 0:00:33.1]} 34. exd5 {[%clk 0:00:41]} 34...
Qf5 {[%clk 0:00:24.5]} 35. Bxg7 {[%clk 0:00:35.4]} 35... Qxf4+ {[%clk
0:00:22.4]} 36. g3 {[%clk 0:00:34.5]} 36... Qc4 {[%clk 0:00:17.6]} 37. Qxc4
{[%clk 0:00:33]} 37... Nxc4 {[%clk 0:00:17.9]} 38. Bf6 {[%clk 0:00:33.1]} 38...
g5 {[%clk 0:00:14.7]} 39. Ne7 {[%clk 0:00:30.4]} 39... Rb2+ {[%clk 0:00:09.8]}
40. Bxb2 {[%clk 0:00:28.5]} 1-0